bitfinex/quotes_ETHUSD_20250622
["timestamp","ask_amount","ask_price","bid_price","bid_amount"]
[1750621717779,7.798,2181.9,2181.5,5.56670017]
[1750621718085,0.0567,2181.8,2181.5,0.06]
[1750621718288,7.85529169,2181.9,2181.5,0.06]
[1750621718766,0.0567,2181.8,2181.5,0.06]
[1750621718971,0.0567,2181.8,2181.5,4.64399811]
[1750621719280,7.8547,2181.9,2181.6,4.58376262]
[1750621719585,7.8547,2181.9,2181.5,4.64388067]
[1750621719742,7.8547,2181.9,2181.5,5.56668035]
[1750621720143,0.0567,2181.8,2181.5,5.56668035]
[1750621720468,7.91199437,2181.9,2181.5,4.64388067]
[1750621720681,7.85529437,2181.9,2181.5,4.64388067]
[1750621720979,0.0567,2181.8,2181.5,4.64388067]
[1750621721548,7.85529437,2181.9,2181.5,4.64388067]
[1750621721549,7.8547,2181.9,2181.6,4.58376557]
[1750621721749,7.85529335,2181.9,2181.6,4.58376557]
[1750621722086,7.798,2181.9,2181.7,4.58347024]
[1750621725093,1.6366,2182.2,2182.1,4.58274139]
[1750621725312,1.6933,2182.5,2181.9,1.5783]
[1750621725462,1.6366,2182.2,2181.6,0.92278862]
[1750621725662,0.0567,2182.1,2181.7,4.58346925]
[1750621725894,1.69388499,2182.2,2181.7,4.58346925]
[1750621726388,1.69388499,2182.2,2181.7,4.58344585]
[1750621727155,1.69388499,2182.2,2181.6,4.58379171]
[1750621727473,1.69388499,2182.2,2181.7,4.58346917]
[1750621727677,0.05728499,2182.2,2181.5,0.06]
[1750621727849,0.1184,2182.3,2181.9,4.58314658]
[1750621728056,10.0,2182.2,2181.9,4.58314658]
[1750621728594,10.0567,2182.2,2181.9,4.58314658]
[1750621728810,10.0567,2182.2,2181.5,6.25556816]
[1750621728811,1.5809,2182.0,2181.8,4.58334338]
[1750621729012,11.6376,2182.2,2181.8,4.58334338]
[1750621729213,0.05728527,2182.1,2181.6,4.58376116]
[1750621729521,0.11398527,2182.1,2181.7,4.58347668]
[1750621729724,0.11398527,2182.1,2181.8,4.58335434]
[1750621730009,0.11398527,2182.1,2181.9,4.58315395]
[1750621730186,0.0567,2182.1,2181.9,4.58315395]
[1750621730693,0.11398686,2182.1,2181.8,4.58326464]
[1750621731208,0.11398686,2182.1,2181.9,4.58315496]
[1750621731510,11.5809,2182.2,2181.8,5.49994666]
[1750621731736,11.5809,2182.2,2181.6,4.58379171]
[1750621731737,0.0567,2182.1,2181.6,4.58379171]
[1750621732026,0.0567,2182.0,2181.7,4.58344229]
[1750621732617,0.0567,2182.0,2181.8,4.58334466]
[1750621733618,0.0567,2182.0,2181.7,4.58351422]
[1750621734294,0.0567,2182.0,2181.8,4.58335538]
[1750621734495,11.5809,2182.2,2181.9,4.58312168]
[1750621734683,11.6432,2182.2,2181.9,4.58312168]
[1750621735691,11.6432,2182.2,2181.8,4.58325205]
[1750621736277,11.6432,2182.2,2181.8,5.50592635]
[1750621736474,11.6432,2182.2,2181.9,4.58315843]
[1750621736678,0.0623,2182.1,2181.8,5.50595122]
[1750621737701,0.0623,2182.0,2181.8,5.50595122]
[1750621738018,0.05728723,2182.1,2181.9,4.5831556]
[1750621739420,10.0617,2182.3,2181.8,0.04033071]
[1750621739725,10.0617,2182.3,2182.1,4.58261986]
[1750621740224,0.0617,2182.3,2182.2,4.58253139]
[1750621740407,0.0617,2182.3,2182.2,5.50307801]
[1750621741214,0.0617,2182.3,2182.2,5.51467801]
[1750621742209,0.0617,2182.3,2182.2,5.50307801]
[1750621742437,0.0617,2182.3,2182.1,4.58262849]
[1750621742616,0.0617,2182.3,2182.2,4.58253139]
[1750621743619,0.0617,2182.3,2182.2,4.62283869]
[1750621743822,0.0617,2182.3,2182.0,0.0116]
[1750621744021,0.0617,2182.3,2182.2,4.58253139]
[1750621744228,0.0617,2182.3,2182.2,5.71755575]
[1750621744393,0.0617,2182.3,2182.2,7.88165419]
[1750621744723,1.57996844,2183.6,2182.3,2.2044]
[1750621744933,1.585,2183.6,2183.3,4.58003822]
[1750621745125,11.585,2183.6,2183.4,4.58000645]
[1750621745293,11.5227,2183.6,2182.9,1.5994]
[1750621745493,0.119549,2183.5,2183.2,4.58042275]
[1750621745703,0.057249,2183.5,2182.9,6.16882324]
[1750621745936,1.5227,2183.6,2183.2,4.58029881]
[1750621746226,0.0623,2183.4,2183.1,4.58053727]
[1750621746433,0.0623,2183.5,2183.3,4.58022259]
[1750621746614,11.5227,2183.6,2183.0,0.05185425]
[1750621746816,11.585,2183.6,2183.2,4.5803296]
[1750621747022,0.0623,2183.5,2183.2,4.5803296]
[1750621747207,1.5227,2183.6,2183.2,4.5803296]
[1750621747407,0.0623,2183.5,2183.2,4.5803296]
[1750621747992,1.5227,2183.6,2183.0,0.55]
[1750621748195,1.5227,2183.6,2183.4,4.57989961]
[1750621748422,7.777,2183.7,2183.5,4.57980306]
[1750621748624,1.6237,2183.8,2183.3,1.5878]
[1750621748824,0.0623,2183.7,2183.4,4.57990979]
[1750621749130,9.3384,2183.8,2183.5,4.57979952]
[1750621749293,9.3384,2183.8,2183.4,4.57990174]
[1750621749294,9.4007,2183.8,2183.4,4.57990174]
[1750621749497,9.4007,2183.8,2183.4,4.58001282]
[1750621749723,9.4007,2183.8,2183.4,4.57990604]
[1750621750292,7.777,2183.8,2183.5,4.57978653]
[1750621750499,1.5837,2183.6,2183.2,4.58040731]
[1750621750731,17.50420197,2183.8,2183.3,4.58021238]
[1750621750934,0.0623,2183.7,2183.3,4.58021238]
[1750621751943,0.0623,2183.6,2183.2,4.58031933]
[1750621752116,0.0623,2183.6,2183.2,5.65052975]
[1750621752707,0.0623,2183.6,2183.4,4.57999942]
[1750621753042,26.58410197,2184.1,2183.4,1.5893]
[1750621753213,1.5904,2184.1,2183.8,4.57906313]
[1750621753396,11.5904,2184.1,2183.9,4.5789364]
[1750621753604,10.0,2184.1,2183.8,4.57906239]
[1750621753837,10.0,2184.1,2183.9,4.57891763]
[1750621754003,10.0623,2184.1,2183.6,4.57945419]
[1750621754341,10.0623,2184.1,2183.5,0.5616]
[1750621754342,0.0623,2183.8,2183.5,4.57979465]
[1750621755010,0.0623,2183.8,2183.4,6.16920438]
[1750621755317,0.0623,2183.8,2183.5,4.57978415]
[1750621755844,9.3594,2183.9,2183.6,4.57952032]
[1750621756243,9.4217,2183.9,2183.5,4.57965644]
[1750621756544,9.4217,2183.9,2183.5,4.61989266]
[1750621757803,7.769,2183.9,2183.5,1.11915674]
[1750621758007,7.769,2183.9,2183.7,4.57925195]
[1750621758346,7.8313,2183.9,2183.6,4.57949495]
[1750621758940,7.8313,2183.9,2183.7,4.57931898]
[1750621759750,11.6159,2184.1,2183.7,4.57931898]
[1750621760030,19.4342,2184.1,2183.7,4.57931898]
[1750621760436,19.3719,2184.1,2183.7,4.57931898]
[1750621760636,0.0623,2184.0,2183.6,4.57948216]
[1750621760841,0.1195364,2184.0,2183.6,1.07601055]
[1750621761044,0.0572364,2184.0,2183.4,6.16919775]
[1750621761211,0.0623,2183.8,2183.4,4.57990934]
[1750621761410,7.80224246,2183.8,2183.4,4.57990934]
[1750621761611,0.0623,2183.7,2183.4,4.57990934]
[1750621761939,7.745,2183.8,2183.6,4.57959333]
[1750621762107,1.7381,2184.1,2183.8,4.57912991]
[1750621762309,1.7381,2184.1,2183.7,4.57926297]
[1750621762841,1.7381,2184.1,2183.8,4.61939253]
[1750621763006,0.1222,2184.1,2183.8,4.61939253]
[1750621763203,0.1222,2184.1,2183.8,5.70533848]
[1750621764047,0.0623,2184.1,2184.0,6.23945457]
[1750621764209,0.0623,2184.1,2184.0,6.27966718]
[1750621764525,0.0623,2184.1,2184.0,6.23945457]
[1750621766454,0.0623,2184.1,2184.0,4.57875457]
[1750621766763,0.0623,2184.1,2184.0,5.81210744]
[1750621768655,0.0623,2184.1,2184.0,6.36210744]
[1750621768866,0.0623,2184.1,2184.0,18.0364985]
[1750621769029,0.0623,2184.1,2184.0,17.99630744]
[1750621769828,0.0623,2184.1,2184.0,25.68230744]
[1750621770456,0.0623,2184.1,2184.0,17.94630744]
[1750621770616,0.0623,2184.1,2184.0,7.39630744]
[1750621771246,0.0623,2184.1,2184.0,7.40950744]
[1750621771748,0.0623,2184.1,2184.0,25.39630744]
[1750621773141,0.0623,2184.1,2184.0,25.95950744]
[1750621773445,0.0623,2184.1,2184.0,7.95950744]
[1750621774243,0.0623,2184.1,2184.0,7.94630744]
[1750621774430,0.0623,2184.1,2183.8,7.73526675]
[1750621774631,0.1222,2184.1,2184.0,4.57875457]
[1750621774829,0.0623,2184.1,2183.9,4.57889535]
[1750621775024,0.0599,2184.0,2183.9,4.57896423]
[1750621775617,0.0599,2184.0,2183.8,18.0]
[1750621775618,0.0599,2183.9,2183.8,18.0]
[1750621776748,0.0599,2183.9,2183.6,7.62514679]
[1750621777060,0.05723167,2184.0,2183.6,7.62514679]
[1750621777581,1.722,2184.1,2183.8,4.57916942]
[1750621777779,0.0599,2184.0,2183.7,4.57927855]
[1750621778138,1.77923723,2184.1,2183.7,4.57927855]
[1750621778464,0.0599,2184.0,2183.7,4.57927855]
[1750621778846,0.0599,2183.9,2183.7,4.57927855]
[1750621780678,0.0599,2183.9,2183.8,4.57917391]
[1750621780967,1.722,2184.1,2183.9,4.57885409]
[1750621781170,0.0599,2184.0,2183.7,4.57924759]
[1750621781538,1.7792371,2184.1,2183.7,4.57924759]
[1750621781731,0.0599,2184.0,2183.8,4.57916332]
[1750621783639,0.0599,2183.9,2183.7,4.57927633]
[1750621783839,0.0599,2183.8,2183.6,3.04555859]
[1750621784050,0.05723652,2183.9,2183.6,3.04555859]
[1750621784839,0.05723652,2183.9,2183.6,7.62515112]
[1750621785066,0.0599,2183.8,2183.6,7.62515112]
[1750621785419,0.05723652,2183.9,2183.8,4.57917391]
[1750621785582,0.0599,2184.9,2184.1,1.6163]
[1750621785909,0.0599,2184.8,2184.6,4.57736785]
[1750621786074,1.5199,2185.0,2184.5,4.57770656]
[1750621786274,0.0599,2185.1,2184.9,4.57668339]
[1750621786475,1.5199,2185.2,2185.0,4.57665903]
[1750621786677,1.5199,2185.2,2185.1,4.57644959]
[1750621787111,1.5199,2185.2,2185.0,4.57656423]
[1750621787281,1.5199,2185.2,2185.1,4.57644959]
[1750621787483,0.0599,2185.3,2185.2,4.57613218]
[1750621787817,10.0599,2185.3,2185.2,4.57613218]
[1750621788506,10.0599,2185.3,2185.1,4.57635493]
[1750621788706,10.0,2185.3,2185.0,4.57659089]
[1750621788914,0.11710121,2185.2,2184.8,4.57688113]
[1750621789113,0.0599,2185.0,2184.6,4.57742699]
[1750621789772,0.0599,2185.0,2184.9,10.0]
[1750621791089,1.6457,2185.1,2185.0,4.57665903]
[1750621791296,1.6716,2185.3,2185.0,4.57665903]
[1750621791808,1.6117,2185.3,2185.0,4.57665903]
[1750621791988,0.0599,2185.2,2185.0,4.57665903]
[1750621792312,0.0599,2185.2,2185.1,4.57644959]
[1750621792486,7.732,2185.4,2185.2,4.57624016]
[1750621792910,7.7909,2185.4,2185.2,4.57624016]
[1750621793079,7.7909,2185.4,2184.2,12.2151]
[1750621793080,15.01364233,2185.3,2184.2,12.2151]
[1750621793285,14.95474233,2185.3,2184.9,10.0]
[1750621793974,0.0589,2185.2,2184.9,10.0]
[1750621794322,0.0589,2185.0,2184.8,4.57706734]
[1750621796673,1.6706,2185.1,2184.8,4.57706734]
[1750621796888,1.6117,2185.1,2184.8,4.57706734]
[1750621797113,0.0589,2185.0,2184.8,4.57706734]
[1750621797287,0.11610935,2185.0,2184.3,10.0]
[1750621797474,0.05720935,2185.0,2184.7,4.5771489]
[1750621797697,0.0589,2184.9,2184.8,10.0]
[1750621798293,0.0589,2184.9,2184.7,10.0]
[1750621798616,0.0589,2184.9,2184.8,4.57707799]
[1750621798775,0.0589,2184.9,2184.7,14.57718926]
[1750621799188,0.0589,2184.9,2184.8,4.57707799]
[1750621800225,0.0589,2184.9,2184.7,14.57717815]
[1750621800683,0.0589,2184.9,2184.7,10.0]
[1750621800889,0.0589,2184.9,2184.7,14.577172]
[1750621801594,0.0589,2184.9,2184.8,4.57707799]
[1750621802723,0.05720935,2185.0,2184.8,4.57707799]
[1750621803028,0.11610935,2185.0,2184.8,4.57707799]
[1750621803227,0.0589,2184.9,2184.7,4.57720783]
[1750621803587,0.05720935,2185.0,2184.4,18.88551]
[1750621803894,0.0589,2184.9,2184.8,4.57693974]
[1750621804090,0.0589,2184.9,2184.7,4.57718748]
[1750621804291,0.0589,2184.9,2184.8,4.57707799]
[1750621804597,0.0589,2184.9,2184.7,4.57719307]
[1750621805222,0.0589,2184.8,2184.0,1.6479]
[1750621805423,1.5835,2184.7,2184.3,4.57803236]
[1750621805736,7.77622479,2184.6,2184.3,4.57803236]
[1750621805898,0.0589,2184.5,2184.2,4.57823688]
[1750621806407,7.77622479,2184.6,2184.3,4.57811686]
[1750621806605,0.0589,2184.5,2184.3,4.57811686]
[1750621807121,1.5835,2184.7,2184.4,4.57782312]
[1750621807311,0.0572185,2184.6,2184.2,4.57822863]
[1750621807830,0.0589,2184.5,2184.0,1.6479]
[1750621808041,0.1161185,2184.6,2184.3,4.57802622]
[1750621808224,0.0589,2184.5,2184.3,4.57802622]
[1750621808633,0.0589,2184.5,2184.4,4.57791613]
[1750621809295,0.0572185,2184.6,2184.0,1.6479]
[1750621809494,0.0572185,2184.6,2184.4,4.57791613]
[1750621809495,0.0589,2184.5,2184.4,4.57791613]
[1750621810573,1.64072321,2184.7,2184.3,4.57805547]
[1750621810854,1.64072321,2184.7,2184.4,4.57788433]
[1750621811430,0.0589,2184.6,2184.4,4.57788433]
[1750621811638,1.64072321,2184.7,2184.4,4.57788433]
[1750621811837,0.0589,2184.6,2184.4,4.57788433]
[1750621812559,0.0589,2184.5,2183.9,4.57896423]
[1750621812757,0.0589,2184.5,2183.8,9.3597]
[1750621812758,0.11612765,2184.5,2184.2,4.57817538]
[1750621812960,0.05722765,2184.5,2184.2,4.57817538]
[1750621813121,0.0589,2184.4,2184.2,4.57817538]
[1750621813528,0.0589,2184.4,2184.1,4.57842495]
[1750621813724,0.0589,2184.2,2184.1,4.57842495]
[1750621814932,1.6969,2184.3,2184.2,4.57833531]
[1750621815262,1.6969,2184.3,2184.1,4.57850387]
[1750621815440,0.0589,2184.2,2184.0,4.57864019]
[1750621816174,1.638,2184.3,2184.0,4.57864019]
[1750621816391,0.0589,2184.2,2184.1,4.57854493]
[1750621816733,1.638,2184.3,2184.2,4.57833531]
[1750621816937,1.6969,2184.3,2184.2,4.57833531]
[1750621817155,1.6969,2184.3,2184.0,4.57866157]
[1750621817156,1.6969,2184.3,2184.1,4.57843091]
[1750621817869,1.6969,2184.3,2184.2,4.57833531]
[1750621818367,1.6969,2184.3,2184.1,4.57842559]
[1750621820199,1.6969,2184.3,2183.6,5.92019055]
[1750621820200,0.0589,2184.2,2183.6,5.92019055]
[1750621820391,10.2638685,2183.7,2183.6,3.04555859]
[1750621820693,19.5878685,2183.7,2183.6,3.04555859]
[1750621820894,29.5878685,2183.7,2183.6,3.00385859]
[1750621821195,0.0589,2183.2,2182.4,4.58194398]
[1750621821393,0.05726753,2183.2,2182.5,0.64991568]
[1750621821540,7.719,2183.1,2182.8,4.58116306]
[1750621821966,10.2049685,2182.9,2182.3,11.5143]
[1750621822238,1.6632,2182.9,2182.3,4.58216527]
[1750621822440,10.0582,2182.7,2181.9,4.58310403]
[1750621822667,1.24127337,2182.6,2182.2,4.58236546]
[1750621822943,7.719,2182.5,2182.2,4.58236546]
[1750621823156,7.77627881,2182.5,2182.2,4.58236546]
[1750621823476,1.5072,2182.4,2182.3,18.0]
[1750621824049,1.5072,2182.4,2182.3,17.9]
[1750621824855,17.719,2182.5,2182.4,4.58211143]
[1750621825148,17.721,2182.5,2182.4,4.58211143]
[1750621825689,10.0,2182.5,2182.4,4.58211143]
[1750621825898,9.3188,2182.7,2182.6,4.58169156]
[1750621826364,9.3188,2182.7,2182.3,4.58227725]
[1750621826772,9.3188,2182.7,2182.5,4.58175875]
[1750621827084,9.3188,2182.7,2182.5,4.58177574]
[1750621827808,9.3188,2182.7,2182.5,4.5817987]
[1750621827980,9.3188,2182.7,2182.6,4.58169156]
[1750621828182,11.56819089,2182.7,2182.4,4.582013]
[1750621828500,0.11547646,2182.6,2182.4,4.582013]
[1750621828656,0.0582,2182.5,2181.8,1.5143]
[1750621828996,0.0582,2182.5,2182.3,4.58218193]
[1750621828997,7.721,2182.4,2182.3,4.58218193]
[1750621830096,7.77828053,2182.4,2182.2,4.58242665]
[1750621830509,1.5988,2182.3,2181.5,1.6452]
[1750621830812,16.63785989,2181.7,2181.5,0.06]
[1750621830973,17.77930056,2181.6,2181.5,0.06]
[1750621831168,17.722,2181.6,2181.5,0.06]
[1750621833298,1.6528,2182.0,2181.8,4.58335202]
[1750621833498,7.724,2182.1,2181.8,4.58321607]
[1750621833803,10.05728718,2182.0,2181.6,4.58362828]
[1750621834009,10.0,2182.0,2181.6,4.58379171]
[1750621834197,10.0,2182.0,2181.7,4.58358161]
[1750621834596,10.0,2182.0,2181.6,4.58371281]
[1750621834807,10.0,2182.0,2181.6,4.48371281]
[1750621835105,10.0,2182.0,2181.7,4.58354016]
[1750621835280,10.88280603,2182.0,2181.7,4.58354016]
[1750621835482,10.88280603,2182.0,2181.8,18.0]
[1750621835686,10.88280603,2182.0,2181.7,4.58354016]
[1750621836116,0.05729295,2181.9,2181.5,0.06]
[1750621836296,9.3404,2181.8,2181.5,0.06]
[1750621836612,0.05729584,2181.7,2181.5,0.06]
[1750621837415,0.11549584,2181.7,2181.5,0.06]
[1750621837779,9.3404,2181.8,2181.5,0.06]
[1750621838215,9.3404,2181.8,2181.5,4.64379329]
[1750621838402,9.3404,2181.8,2181.5,0.06]
[1750621838602,9.3404,2181.8,2181.5,4.64398513]
[1750621838800,1.5768,2182.1,2181.5,2.614475]
[1750621839004,2.081,2182.3,2181.8,1.6276]
[1750621839183,2.081,2182.4,2182.2,4.5824207]
[1750621839586,1.635,2183.0,2182.3,4.5823214]
[1750621839782,10.0,2182.8,2182.2,4.58245256]
[1750621839999,0.05727637,2182.7,2181.8,1.6276]
[1750621840202,0.0582,2182.3,2181.5,6.20867534]
[1750621840406,1.576,2182.1,2181.6,4.58378263]
[1750621840601,0.0582,2181.9,2181.5,0.06]
[1750621840803,7.725,2181.8,2181.5,0.06]
[1750621841124,2.081,2181.7,2181.5,4.64398232]
[1750621841316,2.081,2181.7,2181.5,0.06]
[1750621841821,2.081,2181.7,2181.5,4.64388911]
[1750621842023,2.081,2181.7,2181.5,0.06]
[1750621842826,2.1382966,2181.7,2181.5,0.06]
[1750621843045,2.13829836,2181.7,2181.5,0.06]
[1750621846605,0.05729836,2181.7,2181.5,0.06]
[1750621846805,1.5484,2181.9,2181.5,0.0656]
[1750621847125,9.806,2181.8,2181.5,1.6968]
[1750621847332,9.806,2181.8,2181.5,6.28072496]
[1750621847511,11.6001,2182.1,2181.5,6.28072496]
[1750621847704,2.38252497,2182.0,2181.5,6.28072496]
[1750621847922,9.807,2181.9,2181.5,6.28072496]
[1750621848426,9.807,2181.9,2181.6,4.58376843]
[1750621848626,9.807,2181.9,2181.5,6.27509645]
[1750621848800,9.807,2181.9,2181.5,6.28069645]
[1750621848999,2.26703,2182.0,2181.5,6.28069645]
[1750621849236,9.86329496,2181.9,2181.6,4.58378713]
[1750621849405,9.806,2181.9,2181.6,4.58378713]
[1750621850234,2.26703,2182.0,2181.6,4.58378713]
[1750621850402,11.6001,2182.1,2181.6,1.08589115]
[1750621850740,9.806,2181.9,2181.7,4.58918161]
[1750621850895,11.6001,2182.1,2181.9,4.58302782]
[1750621851100,11.012,2182.2,2181.9,4.58316146]
[1750621851301,9.806,2182.1,2181.8,4.58327274]
[1750621852838,11.012,2182.2,2182.0,4.58295142]
[1750621853037,20.816,2182.2,2182.0,0.0574]
[1750621853226,20.816,2182.2,2181.9,0.0574]
[1750621853423,0.05728231,2182.1,2181.7,4.58345198]
[1750621853738,0.05728231,2182.1,2181.8,4.5832592]
[1750621853939,20.816,2182.2,2181.9,4.58314934]
[1750621854432,20.816,2182.2,2181.8,4.58327519]
[1750621854620,0.05729021,2182.1,2181.8,4.58327519]
[1750621855039,0.11929021,2182.1,2181.7,0.0574]
[1750621855239,10.62128039,2183.6,2183.5,5.12980306]
[1750621855448,9.07322742,2183.6,2183.5,2.64124821]
[1750621855606,2.079,2184.2,2183.5,2.64124821]
[1750621855806,0.062,2184.0,2183.5,1.37627]
[1750621856003,0.01695357,2183.9,2182.9,0.0549]
[1750621856215,7.833,2183.8,2183.0,1.376662]
[1750621856442,0.01695357,2183.7,2183.3,4.58005608]
[1750621856641,2.141,2183.6,2183.3,4.58005608]
[1750621856936,7.771,2183.5,2183.4,4.58001282]
[1750621857100,8.76389536,2183.5,2183.3,4.58009401]
[1750621857314,8.76389536,2183.5,2183.4,4.58001282]
[1750621857503,8.82589536,2183.5,2183.2,4.58040758]
[1750621857706,0.01695357,2183.4,2182.6,3.48363725]
[1750621857939,0.062,2183.3,2182.9,4.58094081]
[1750621858252,0.062,2183.3,2182.8,4.5811441]
[1750621858466,0.062,2183.3,2182.8,18.0]
[1750621858607,0.01695357,2183.4,2182.8,18.0]
[1750621858951,0.062,2183.3,2182.8,18.0]
[1750621859118,0.062,2183.3,2182.8,22.58126987]
[1750621859328,0.062,2183.3,2182.9,4.58100184]
[1750621859505,0.062,2183.3,2182.8,22.58118474]
[1750621859809,0.062,2183.3,2182.8,18.44892414]
[1750621860137,9.845,2183.2,2183.0,4.58070038]
[1750621860341,9.845,2183.2,2182.8,18.44892414]
[1750621860651,9.907,2183.2,2183.0,4.58082341]
[1750621860842,9.907,2183.2,2182.9,4.58096385]
[1750621861006,9.907,2183.2,2182.9,4.58088833]
[1750621861209,11.01088578,2183.2,2182.9,4.58088833]
[1750621861409,11.01088578,2183.2,2182.8,18.44892414]
[1750621861410,10.94888578,2183.2,2183.0,4.58085203]
[1750621861713,10.94888578,2183.2,2182.8,18.44892414]
[1750621861907,1.13185785,2183.3,2183.2,4.58043239]
[1750621862113,0.062,2183.4,2182.9,0.04580919]
[1750621862114,2.079,2183.4,2183.3,4.58022259]
[1750621862544,0.062,2183.8,2183.4,4.58001282]
[1750621862821,9.853,2183.7,2183.3,0.0457969]
[1750621863022,1.6164,2183.9,2183.3,0.0457969]
[1750621863233,2.078,2183.9,2183.8,4.57911079]
[1750621863442,3.0694,2183.9,2183.8,4.57911079]
[1750621863854,3.6944,2184.2,2184.1,4.57854493]
[1750621864069,2.14,2184.3,2184.0,4.57864946]
[1750621864254,12.00695357,2184.3,2184.0,4.57864946]
[1750621864843,0.45550439,2185.3,2184.0,4.57864946]
[1750621864844,0.062,2184.7,2184.3,4.57812498]
[1750621865048,9.854,2184.6,2184.1,1.5172]
[1750621865371,1.6164,2184.8,2184.5,4.57767647]
[1750621865668,2.078,2184.6,2184.2,5.03761926]
[1750621865828,1.0474,2184.5,2184.3,4.57807665]
[1750621866265,0.062,2184.4,2184.1,4.57838775]
[1750621866824,9.912,2184.4,2184.1,5.04577127]
[1750621867051,9.912,2184.4,2184.1,0.46738352]
[1750621867260,9.912,2184.4,2183.7,4.57926274]
[1750621867261,1.631,2184.3,2183.7,4.57926274]
[1750621867462,1.1481,2184.2,2183.7,4.57926274]
[1750621867637,0.062,2184.1,2183.7,4.57926274]
[1750621867832,7.835,2184.0,2183.7,4.57926274]
[1750621868037,2.078,2183.9,2183.7,4.57926274]
[1750621868262,2.14,2183.9,2183.3,4.58011704]
[1750621868562,0.062,2183.7,2183.2,4.58032371]
[1750621868723,7.833,2183.6,2183.3,4.58019231]
[1750621869128,7.833,2183.6,2183.2,4.58034015]
[1750621869325,0.9913,2183.8,2183.2,14.58028044]
[1750621869564,9.847,2183.7,2183.1,10.52228352]
[1750621869765,9.847,2183.7,2183.5,4.57977567]
[1750621870341,9.847,2183.7,2183.4,4.57991651]
[1750621870947,9.847,2183.7,2183.5,4.57979556]
[1750621871285,9.847,2183.7,2183.5,4.57977008]
[1750621871680,9.847,2183.7,2183.4,4.57991865]
[1750621871981,9.847,2183.7,2183.4,4.58001282]
[1750621872581,9.847,2183.7,2183.5,4.57978247]
[1750621873284,9.847,2183.7,2183.6,4.57959333]
[1750621873661,1.6213,2184.0,2183.7,4.57932125]
[1750621873851,9.832,2183.8,2183.6,4.57959333]
[1750621874061,9.832,2183.8,2183.1,11.75225345]
[1750621874062,0.062,2183.7,2183.1,0.46738352]
[1750621874360,0.062,2183.7,2183.3,4.58010029]
[1750621874545,9.832,2183.8,2183.3,14.58010029]
[1750621874747,0.062,2183.7,2183.3,10.0]
[1750621874952,1.0514,2183.7,2183.5,4.57974585]
[1750621875381,1.0514,2183.7,2183.4,4.57990941]
[1750621875586,1.0514,2183.7,2183.6,4.57959333]
[1750621875895,0.9894,2183.7,2183.6,4.57959333]
[1750621876066,2.82203,2184.0,2183.7,4.57928096]
[1750621876385,0.062,2183.9,2183.6,4.57949606]
[1750621876552,0.062,2183.9,2183.7,4.57920116]
[1750621876752,12.64703,2184.0,2183.8,4.57916288]
[1750621877054,12.70903,2184.0,2183.8,4.57916288]
[1750621877249,1.270903,2183.9,2183.8,4.57916288]
[1750621877682,1.270903,2183.9,2183.7,4.57926845]
[1750621877852,12.70903,2184.0,2183.8,4.57917391]
[1750621878860,11.3843,2184.0,2183.8,4.57917391]
[1750621879486,1.5593,2184.0,2183.8,4.57917391]
[1750621879687,9.826,2184.0,2183.5,5.00224646]
[1750621879851,9.826,2184.0,2183.8,4.5790692]
[1750621880380,9.825,2184.0,2183.8,4.5790692]
[1750621880562,9.825,2184.0,2183.9,4.57896423]
[1750621881811,1.5848,2184.3,2183.5,0.0549]
[1750621881953,1.5848,2184.3,2184.2,4.57833531]
[1750621881954,9.832,2184.3,2184.2,4.57833531]
[1750621882780,9.8928,2184.5,2184.3,4.57802652]
[1750621883285,9.8928,2184.5,2184.3,4.57801158]
[1750621883689,9.8928,2184.5,2184.2,5.00306401]
[1750621883903,9.8928,2184.5,2184.4,4.57791613]
[1750621884208,1.5848,2184.7,2184.6,4.57749702]
[1750621884361,1.5848,2184.7,2184.5,4.57756811]
[1750621884362,11.4726,2184.7,2184.5,4.57756811]
[1750621884555,11.4726,2184.7,2184.1,6.20734493]
[1750621884556,7.7958,2184.6,2184.4,4.57781132]
[1750621885254,0.0588,2184.6,2184.4,4.57781132]
[1750621885461,9.827,2184.5,2184.4,4.57781132]
[1750621886701,0.0588,2184.4,2183.7,1.6288]
[1750621886879,1.596,2184.3,2183.9,4.5789429]
[1750621887059,1.20586,2184.5,2183.9,4.57896423]
[1750621887391,0.0588,2184.3,2184.0,4.57864541]
[1750621888108,1.6881,2184.6,2184.3,4.57812571]
[1750621888258,9.829,2184.5,2184.4,4.57791312]
[1750621888459,1.6293,2184.8,2184.4,4.57791312]
[1750621888698,9.834,2184.7,2184.5,4.57758773]
[1750621889000,9.833,2184.6,2184.1,4.57854493]
[1750621889189,9.833,2184.6,2184.5,4.57770656]
[1750621889374,7.742,2184.7,2184.6,4.57739168]
[1750621889573,7.742,2184.7,2184.5,4.57763754]
[1750621889771,7.8008,2184.7,2184.0,11.5021]
[1750621889978,7.8008,2184.7,2184.4,4.57788131]
[1750621890274,7.8008,2184.7,2184.5,4.57752878]
[1750621891565,7.742,2184.7,2184.0,1.557]
[1750621891774,7.742,2184.7,2184.6,4.57749702]
[1750621892196,0.0588,2185.4,2184.8,4.57707799]
[1750621892394,1.375935,2185.8,2185.1,4.57644959]
[1750621892395,2.09,2185.2,2185.1,4.57644959]
[1750621892570,9.833,2185.3,2185.2,4.57624016]
[1750621892765,2.09,2185.3,2185.2,4.5762329]
[1750621892994,7.742,2185.3,2184.8,4.57693398]
[1750621893311,0.0588,2185.2,2184.8,4.57702238]
[1750621893507,0.0588,2185.2,2185.0,4.57663795]
[1750621893717,7.742,2185.3,2185.2,4.57624016]
[1750621893878,1.7213,2185.5,2185.2,4.57624016]
[1750621894083,7.739,2185.3,2185.2,4.57624016]
[1750621894290,2.09,2185.5,2185.4,4.57582135]
[1750621894497,2.09,2185.5,2185.3,4.57585918]
[1750621894716,2.09,2185.5,2185.4,4.57582135]
[1750621895139,1.99,2185.5,2185.2,4.57605682]
[1750621895333,0.9727,2185.4,2184.9,1.5279]
[1750621895625,2.0488,2185.5,2185.2,4.57611993]
[1750621895827,1.99,2185.5,2185.4,4.57582135]
[1750621895977,12.7223,2185.8,2185.5,4.57557695]